[Event "Titled Tuesday Blitz December 27 Early 2022"]
[White "Viskelis, Darius"]
[Black "Belozerov, Andrei"]
[WhiteFideId "12800830"]
[BlackFideId "4120213"]
[WhiteElo "2166"]
[BlackElo "2461"]
[Result "0-1"]
[Round "03"]
[TimeControl "180+2"]
[Date "2022.12.27"]
[WhiteClock "0:00:07"]
[BlackClock "0:00:43"]

1. e4 {[%clk 0:02:59]}  c5 {[%clk 0:02:59]} 2. Nf3 {[%clk 0:02:58]}  Nc6 {[%clk 0:02:59]} 3. Bb5 {[%clk 0:02:58]}  g6 {[%clk 0:02:59]} 4. O-O {[%clk 0:02:56]}  Bg7 {[%clk 0:02:58]} 5. c3 {[%clk 0:02:54]}  Nf6 {[%clk 0:02:57]} 6. Re1 {[%clk 0:02:53]}  O-O {[%clk 0:02:56]} 7. h3 {[%clk 0:02:54]}  e5 {[%clk 0:02:56]} 8. d4 {[%clk 0:02:45]}  cxd4 {[%clk 0:02:54]} 9. cxd4 {[%clk 0:02:45]}  Nxd4 {[%clk 0:02:54]} 10. Nxd4 {[%clk 0:02:44]}  exd4 {[%clk 0:02:53]} 11. Qxd4 {[%clk 0:02:42]}  d5 {[%clk 0:02:30]} 12. e5 {[%clk 0:02:28]}  Ne4 {[%clk 0:02:27]} 13. Nc3 {[%clk 0:02:12]}  Nxc3 {[%clk 0:02:21]} 14. Qxc3 {[%clk 0:02:10]}  d4 {[%clk 0:02:17]} 15. Qb3 {[%clk 0:02:02]}  Be6 {[%clk 0:02:15]} 16. Bc4 {[%clk 0:02:02]}  Bxc4 {[%clk 0:02:12]} 17. Qxc4 {[%clk 0:02:03]}  Rc8 {[%clk 0:02:11]} 18. Qb3 {[%clk 0:02:03]}  Qb6 {[%clk 0:02:10]} 19. Bd2 {[%clk 0:01:17]}  Rfe8 {[%clk 0:02:01]} 20. f4 {[%clk 0:01:11]}  Qxb3 {[%clk 0:01:37]} 21. axb3 {[%clk 0:01:12]}  Rc2 {[%clk 0:01:37]} 22. Red1 {[%clk 0:00:35]}  f6 {[%clk 0:01:15]} 23. Rxa7 {[%clk 0:00:28]}  fxe5 {[%clk 0:01:13]} 24. Rxb7 {[%clk 0:00:27]}  e4 {[%clk 0:01:04]} 25. Ba5 {[%clk 0:00:20]}  d3 {[%clk 0:00:53]} 26. Bc3 {[%clk 0:00:10]}  Bxc3 {[%clk 0:00:51]} 27. bxc3 {[%clk 0:00:11]}  e3 {[%clk 0:00:49]} 28. Rxd3 {[%clk 0:00:09]}  e2 {[%clk 0:00:49]} 29. Rdd7 {[%clk 0:00:06]}  e1=Q+ {[%clk 0:00:48]} 30. Kh2 {[%clk 0:00:07]}  Rxg2+ {[%clk 0:00:46]} 31. Kxg2 {[%clk 0:00:07]}  Re2+ {[%clk 0:00:43]} 0-1


[Site "https://www.chess.com"]

[Event "Titled Tuesday Blitz December 27 Early 2022"]
[White "Volkov, Maksim"]
[Black "Ozen, Bahadir"]
[WhiteFideId "54123070"]
[BlackFideId "6337058"]
[WhiteElo "2258"]
[BlackElo "2369"]
[Result "0-1"]
[Round "03"]
[TimeControl "180+2"]
[Date "2022.12.27"]
[WhiteClock "0:00:04"]
[BlackClock "0:00:06"]

1. d4 {[%clk 0:03:00]}  d6 {[%clk 0:02:59]} 2. Nf3 {[%clk 0:03:00]}  Nf6 {[%clk 0:03:00]} 3. c4 {[%clk 0:02:59]}  Nbd7 {[%clk 0:03:00]} 4. Nc3 {[%clk 0:02:59]}  e5 {[%clk 0:03:00]} 5. g3 {[%clk 0:03:00]}  Be7 {[%clk 0:03:00]} 6. Bg2 {[%clk 0:03:00]}  O-O {[%clk 0:03:01]} 7. O-O {[%clk 0:03:01]}  c6 {[%clk 0:03:01]} 8. Qc2 {[%clk 0:02:48]}  Re8 {[%clk 0:03:00]} 9. Bd2 {[%clk 0:02:46]}  Bf8 {[%clk 0:02:56]} 10. e4 {[%clk 0:02:38]}  a6 {[%clk 0:02:54]} 11. a4 {[%clk 0:02:28]}  a5 {[%clk 0:02:41]} 12. Rad1 {[%clk 0:02:23]}  exd4 {[%clk 0:02:31]} 13. Nxd4 {[%clk 0:02:23]}  Nc5 {[%clk 0:02:32]} 14. Rfe1 {[%clk 0:02:14]}  Qb6 {[%clk 0:02:20]} 15. h3 {[%clk 0:01:58]}  Bd7 {[%clk 0:02:00]} 16. Bg5 {[%clk 0:01:57]}  Be7 {[%clk 0:01:57]} 17. b3 {[%clk 0:01:38]}  h6 {[%clk 0:01:52]} 18. Be3 {[%clk 0:01:36]}  Rad8 {[%clk 0:01:52]} 19. Nce2 {[%clk 0:01:31]}  Bf8 {[%clk 0:01:51]} 20. f3 {[%clk 0:01:25]}  d5 {[%clk 0:01:39]} 21. cxd5 {[%clk 0:01:10]}  cxd5 {[%clk 0:01:39]} 22. Nc3 {[%clk 0:01:05]}  dxe4 {[%clk 0:01:38]} 23. fxe4 {[%clk 0:01:05]}  Be6 {[%clk 0:00:56]} 24. Nxe6 {[%clk 0:00:55]}  Qxe6 {[%clk 0:00:57]} 25. Nd5 {[%clk 0:00:42]}  Rc8 {[%clk 0:00:51]} 26. Qb2 {[%clk 0:00:23]}  Nfxe4 {[%clk 0:00:40]} 27. Kh2 {[%clk 0:00:22]}  f5 {[%clk 0:00:38]} 28. Nf4 {[%clk 0:00:22]}  Qxb3 {[%clk 0:00:35]} 29. Qd4 {[%clk 0:00:17]}  Qf7 {[%clk 0:00:31]} 30. Bg1 {[%clk 0:00:12]}  Kh7 {[%clk 0:00:15]} 31. Bf1 {[%clk 0:00:12]}  Qf6 {[%clk 0:00:13]} 32. Bb5 {[%clk 0:00:11]}  Qxd4 {[%clk 0:00:13]} 33. Rxd4 {[%clk 0:00:10]}  Red8 {[%clk 0:00:13]} 34. Red1 {[%clk 0:00:10]}  Rxd4 {[%clk 0:00:13]} 35. Rxd4 {[%clk 0:00:11]}  Be7 {[%clk 0:00:11]} 36. Kg2 {[%clk 0:00:09]}  Bf6 {[%clk 0:00:11]} 37. Rd5 {[%clk 0:00:09]}  g6 {[%clk 0:00:09]} 38. h4 {[%clk 0:00:09]}  h5 {[%clk 0:00:09]} 39. Bd4 {[%clk 0:00:06]}  Bxd4 {[%clk 0:00:09]} 40. Rxd4 {[%clk 0:00:07]}  Kg7 {[%clk 0:00:09]} 41. Rd5 {[%clk 0:00:07]}  Kf6 {[%clk 0:00:09]} 42. Be2 {[%clk 0:00:06]}  b6 {[%clk 0:00:05]} 43. Bf3 {[%clk 0:00:06]}  Rb8 {[%clk 0:00:04]} 44. Rd4 {[%clk 0:00:06]}  Ke5 {[%clk 0:00:04]} 45. Rd5+ {[%clk 0:00:06]}  Kf6 {[%clk 0:00:05]} 46. Rd1 {[%clk 0:00:07]}  Kf7 {[%clk 0:00:05]} 47. Rd5 {[%clk 0:00:07]}  Nxa4 {[%clk 0:00:05]} 48. Be2 {[%clk 0:00:06]}  Nac5 {[%clk 0:00:05]} 49. Bb5 {[%clk 0:00:06]}  a4 {[%clk 0:00:04]} 50. Rd1 {[%clk 0:00:07]}  a3 {[%clk 0:00:05]} 51. Rb1 {[%clk 0:00:07]}  Nc3 {[%clk 0:00:04]} 52. Bc4+ {[%clk 0:00:07]}  Kg7 {[%clk 0:00:05]} 53. Rc1 {[%clk 0:00:07]}  a2 {[%clk 0:00:04]} 54. Ra1 {[%clk 0:00:08]}  Ra8 {[%clk 0:00:05]} 55. Kf2 {[%clk 0:00:08]}  b5 {[%clk 0:00:05]} 56. Ne6+ {[%clk 0:00:04]}  Nxe6 {[%clk 0:00:05]} 57. Bxe6 {[%clk 0:00:05]}  b4 {[%clk 0:00:05]} 58. Ke3 {[%clk 0:00:06]}  Kf6 {[%clk 0:00:05]} 59. Bb3 {[%clk 0:00:06]}  Ra3 {[%clk 0:00:05]} 60. Bc4 {[%clk 0:00:06]}  Ne4+ {[%clk 0:00:04]} 61. Kd4 {[%clk 0:00:06]}  Nxg3 {[%clk 0:00:05]} 62. Rxa2 {[%clk 0:00:04]}  Rxa2 {[%clk 0:00:05]} 63. Bxa2 {[%clk 0:00:05]}  Ne2+ {[%clk 0:00:05]} 64. Ke3 {[%clk 0:00:05]}  Nc3 {[%clk 0:00:05]} 65. Bb3 {[%clk 0:00:05]}  Ke5 {[%clk 0:00:05]} 66. Bf7 {[%clk 0:00:05]}  Nd5+ {[%clk 0:00:06]} 67. Kf3 {[%clk 0:00:04]}  Ne7 {[%clk 0:00:06]} 68. Bb3 {[%clk 0:00:04]}  Nc6 {[%clk 0:00:06]} 69. Bf7 {[%clk 0:00:03]}  Kf6 {[%clk 0:00:06]} 70. Ke3 {[%clk 0:00:04]}  Kxf7 {[%clk 0:00:06]} 0-1


[Site "https://www.chess.com"]

[Event "Titled Tuesday Blitz December 27 Early 2022"]
[White "Wagner, Dinara"]
[Black "Steinberg, Nitzan"]
[WhiteFideId "24157570"]
[BlackFideId "2801795"]
[WhiteElo "2417"]
[BlackElo "2546"]
[Result "1-0"]
[Round "03"]
[TimeControl "180+2"]
[Date "2022.12.27"]
[WhiteClock "0:00:06"]
[BlackClock "0:00:07"]

1. Nf3 {[%clk 0:02:59]}  d5 {[%clk 0:03:00]} 2. d4 {[%clk 0:03:00]}  Nf6 {[%clk 0:02:59]} 3. c3 {[%clk 0:03:00]}  g6 {[%clk 0:02:59]} 4. g3 {[%clk 0:02:59]}  Bg7 {[%clk 0:03:00]} 5. Bg2 {[%clk 0:03:00]}  O-O {[%clk 0:03:00]} 6. O-O {[%clk 0:03:00]}  b6 {[%clk 0:03:01]} 7. c4 {[%clk 0:02:55]}  c6 {[%clk 0:02:59]} 8. cxd5 {[%clk 0:02:54]}  cxd5 {[%clk 0:02:59]} 9. Nc3 {[%clk 0:02:55]}  Bb7 {[%clk 0:02:55]} 10. Ne5 {[%clk 0:02:46]}  e6 {[%clk 0:02:54]} 11. Bf4 {[%clk 0:02:40]}  Nfd7 {[%clk 0:02:52]} 12. Nf3 {[%clk 0:02:14]}  Nc6 {[%clk 0:02:51]} 13. Nb5 {[%clk 0:02:14]}  h6 {[%clk 0:02:15]} 14. Bd6 {[%clk 0:02:05]}  a6 {[%clk 0:02:06]} 15. Bxf8 {[%clk 0:01:59]}  Qxf8 {[%clk 0:02:06]} 16. Nc3 {[%clk 0:01:56]}  b5 {[%clk 0:02:06]} 17. a3 {[%clk 0:01:55]}  Rc8 {[%clk 0:02:06]} 18. Rc1 {[%clk 0:01:55]}  Nb6 {[%clk 0:02:06]} 19. e4 {[%clk 0:01:50]}  Na5 {[%clk 0:01:39]} 20. Ne5 {[%clk 0:01:35]}  Nac4 {[%clk 0:01:22]} 21. exd5 {[%clk 0:01:26]}  exd5 {[%clk 0:01:20]} 22. Nxc4 {[%clk 0:01:06]}  Nxc4 {[%clk 0:01:17]} 23. Nxd5 {[%clk 0:01:03]}  Rd8 {[%clk 0:01:16]} 24. Ne3 {[%clk 0:00:48]}  Bxd4 {[%clk 0:01:06]} 25. Qe2 {[%clk 0:00:43]}  Bxe3 {[%clk 0:00:57]} 26. Rxc4 {[%clk 0:00:27]}  Bxg2 {[%clk 0:00:51]} 27. Kxg2 {[%clk 0:00:26]}  bxc4 {[%clk 0:00:51]} 28. Qxe3 {[%clk 0:00:26]}  Qd6 {[%clk 0:00:50]} 29. Rc1 {[%clk 0:00:25]}  Rc8 {[%clk 0:00:42]} 30. Qe4 {[%clk 0:00:21]}  Qc5 {[%clk 0:00:41]} 31. Rc2 {[%clk 0:00:20]}  h5 {[%clk 0:00:41]} 32. h4 {[%clk 0:00:19]}  a5 {[%clk 0:00:41]} 33. Re2 {[%clk 0:00:19]}  Qb5 {[%clk 0:00:33]} 34. Qe7 {[%clk 0:00:16]}  a4 {[%clk 0:00:30]} 35. Qe5 {[%clk 0:00:16]}  Qb7+ {[%clk 0:00:26]} 36. Qe4 {[%clk 0:00:16]}  Qb3 {[%clk 0:00:24]} 37. Qf4 {[%clk 0:00:16]}  c3 {[%clk 0:00:17]} 38. bxc3 {[%clk 0:00:15]}  Qxa3 {[%clk 0:00:18]} 39. Qf6 {[%clk 0:00:15]}  Qc5 {[%clk 0:00:12]} 40. Re7 {[%clk 0:00:15]}  Qd5+ {[%clk 0:00:12]} 41. Kh2 {[%clk 0:00:15]}  a3 {[%clk 0:00:11]} 42. Ra7 {[%clk 0:00:14]}  a2 {[%clk 0:00:09]} 43. Qa6 {[%clk 0:00:09]}  Rxc3 {[%clk 0:00:03]} 44. Qxa2 {[%clk 0:00:09]}  Qf5 {[%clk 0:00:02]} 45. Qe2 {[%clk 0:00:08]}  Kh7 {[%clk 0:00:01]} 46. Qa2 {[%clk 0:00:07]}  Kg7 {[%clk 0:00:01]} 47. Qb2 {[%clk 0:00:07]}  Qf6 {[%clk 0:00:01]} 48. Ra6 {[%clk 0:00:06]}  Rc6 {[%clk 0:00:01]} 49. Qxf6+ {[%clk 0:00:06]}  Rxf6 {[%clk 0:00:01]} 50. Rxf6 {[%clk 0:00:04]}  Kxf6 {[%clk 0:00:02]} 51. Kg2 {[%clk 0:00:05]}  Kf5 {[%clk 0:00:03]} 52. Kf3 {[%clk 0:00:05]}  Ke5 {[%clk 0:00:04]} 53. Ke3 {[%clk 0:00:06]}  f6 {[%clk 0:00:03]} 54. Kf3 {[%clk 0:00:06]}  g5 {[%clk 0:00:03]} 55. Ke3 {[%clk 0:00:04]}  Kf5 {[%clk 0:00:03]} 56. Kf3 {[%clk 0:00:04]}  g4+ {[%clk 0:00:03]} 57. Ke3 {[%clk 0:00:05]}  Ke5 {[%clk 0:00:04]} 58. Kd3 {[%clk 0:00:05]}  f5 {[%clk 0:00:04]} 59. Ke3 {[%clk 0:00:05]}  f4+ {[%clk 0:00:05]} 60. Kd3 {[%clk 0:00:03]}  Kd5 {[%clk 0:00:04]} 61. gxf4 {[%clk 0:00:02]}  Kd6 {[%clk 0:00:04]} 62. Ke3 {[%clk 0:00:03]}  Kd5 {[%clk 0:00:04]} 63. Kd3 {[%clk 0:00:04]}  Kd6 {[%clk 0:00:05]} 64. Ke4 {[%clk 0:00:04]}  Ke6 {[%clk 0:00:06]} 65. f5+ {[%clk 0:00:05]}  Kf6 {[%clk 0:00:06]} 66. Kf4 {[%clk 0:00:06]}  Kf7 {[%clk 0:00:07]} 67. Kg5 {[%clk 0:00:06]}  Kg7 {[%clk 0:00:07]} 68. Kxh5 {[%clk 0:00:06]} 1-0


[Site "https://www.chess.com"]

[Event "Titled Tuesday Blitz December 27 Early 2022"]
[White "Wickramasinghe, Minethma Lasandi"]
[Black "Troltenier, Dirk"]
[WhiteFideId "9966170"]
[BlackFideId "4606400"]
[WhiteElo "1483"]
[BlackElo "2234"]
[Result "1-0"]
[Round "03"]
[TimeControl "180+2"]
[Date "2022.12.27"]
[WhiteClock "0:00:20"]
[BlackClock "0:00:08"]

1. e4 {[%clk 0:02:56]}  e5 {[%clk 0:02:59]} 2. Nf3 {[%clk 0:02:55]}  d6 {[%clk 0:02:59]} 3. d4 {[%clk 0:02:56]}  exd4 {[%clk 0:03:00]} 4. Nxd4 {[%clk 0:02:55]}  Nf6 {[%clk 0:03:00]} 5. Nc3 {[%clk 0:02:55]}  Be7 {[%clk 0:03:00]} 6. Bc4 {[%clk 0:02:55]}  O-O {[%clk 0:03:00]} 7. O-O {[%clk 0:02:55]}  Re8 {[%clk 0:03:01]} 8. Re1 {[%clk 0:02:53]}  Nbd7 {[%clk 0:03:00]} 9. Bb3 {[%clk 0:02:43]}  Ne5 {[%clk 0:02:49]} 10. f3 {[%clk 0:02:33]}  c6 {[%clk 0:02:46]} 11. Bf4 {[%clk 0:02:20]}  Qc7 {[%clk 0:02:17]} 12. a4 {[%clk 0:01:59]}  a6 {[%clk 0:02:15]} 13. a5 {[%clk 0:01:58]}  Bd7 {[%clk 0:02:00]} 14. Qd2 {[%clk 0:01:54]}  Rad8 {[%clk 0:01:51]} 15. Na4 {[%clk 0:01:42]}  c5 {[%clk 0:01:23]} 16. Nf5 {[%clk 0:00:44]}  c4 {[%clk 0:01:21]} 17. Nxe7+ {[%clk 0:00:34]}  Rxe7 {[%clk 0:01:22]} 18. Nb6 {[%clk 0:00:29]}  cxb3 {[%clk 0:01:16]} 19. cxb3 {[%clk 0:00:30]}  Bc6 {[%clk 0:01:07]} 20. Rac1 {[%clk 0:00:22]}  Ree8 {[%clk 0:01:04]} 21. Bg5 {[%clk 0:00:20]}  Rb8 {[%clk 0:00:33]} 22. Bxf6 {[%clk 0:00:19]}  gxf6 {[%clk 0:00:33]} 23. Nd5 {[%clk 0:00:19]}  Qd8 {[%clk 0:00:31]} 24. Nf4 {[%clk 0:00:19]}  Ng6 {[%clk 0:00:29]} 25. Nh5 {[%clk 0:00:18]}  Qe7 {[%clk 0:00:26]} 26. Qh6 {[%clk 0:00:19]}  Qf8 {[%clk 0:00:08]} 27. Nxf6+ {[%clk 0:00:19]}  Kh8 {[%clk 0:00:08]} 28. Qxh7# {[%clk 0:00:20]} 1-0


[Site "https://www.chess.com"]

[Event "Titled Tuesday Blitz December 27 Early 2022"]
[White "Xiong, Jeffery"]
[Black "Usmanov, Vasily"]
[WhiteFideId "2047640"]
[BlackFideId "4135741"]
[WhiteElo "2692"]
[BlackElo "2450"]
[Result "1-0"]
[Round "03"]
[TimeControl "180+2"]
[Date "2022.12.27"]
[WhiteClock "0:00:45"]
[BlackClock "0:00:12"]

1. b3 {[%clk 0:03:00]}  Nf6 {[%clk 0:02:57]} 2. Bb2 {[%clk 0:03:00]}  g6 {[%clk 0:02:58]} 3. Bxf6 {[%clk 0:02:49]}  exf6 {[%clk 0:02:59]} 4. c4 {[%clk 0:02:49]}  d5 {[%clk 0:02:58]} 5. cxd5 {[%clk 0:02:47]}  Qxd5 {[%clk 0:02:59]} 6. Nc3 {[%clk 0:02:47]}  Qa5 {[%clk 0:02:58]} 7. g3 {[%clk 0:02:46]}  h5 {[%clk 0:02:57]} 8. Nf3 {[%clk 0:02:45]}  Bg7 {[%clk 0:02:54]} 9. Bg2 {[%clk 0:02:46]}  f5 {[%clk 0:02:50]} 10. Rc1 {[%clk 0:02:45]}  c5 {[%clk 0:02:49]} 11. O-O {[%clk 0:02:43]}  O-O {[%clk 0:02:47]} 12. d4 {[%clk 0:02:39]}  cxd4 {[%clk 0:02:44]} 13. Nxd4 {[%clk 0:02:40]}  Rd8 {[%clk 0:02:41]} 14. e3 {[%clk 0:02:40]}  Na6 {[%clk 0:02:27]} 15. Qe2 {[%clk 0:02:27]}  Rb8 {[%clk 0:01:59]} 16. Rfd1 {[%clk 0:02:19]}  Bd7 {[%clk 0:01:56]} 17. Nd5 {[%clk 0:02:18]}  Nb4 {[%clk 0:01:45]} 18. Qd2 {[%clk 0:01:40]}  Bf8 {[%clk 0:01:18]} 19. a3 {[%clk 0:01:16]}  Qxa3 {[%clk 0:01:13]} 20. Ra1 {[%clk 0:01:13]}  Qxa1 {[%clk 0:00:25]} 21. Rxa1 {[%clk 0:01:14]}  Nxd5 {[%clk 0:00:25]} 22. Bxd5 {[%clk 0:01:12]}  a6 {[%clk 0:00:22]} 23. Rc1 {[%clk 0:01:02]}  Be8 {[%clk 0:00:20]} 24. Bg2 {[%clk 0:00:55]}  Bg7 {[%clk 0:00:16]} 25. Rc7 {[%clk 0:00:53]}  Rd6 {[%clk 0:00:12]} 26. Rxb7 {[%clk 0:00:47]}  Rxb7 {[%clk 0:00:12]} 27. Bxb7 {[%clk 0:00:46]}  a5 {[%clk 0:00:12]} 28. Qxa5 {[%clk 0:00:45]} 1-0


[Site "https://www.chess.com"]

[Event "Titled Tuesday Blitz December 27 Early 2022"]
[White "Yeritsyan, Hayk"]
[Black "Toropov, Pavel"]
[WhiteFideId "13307320"]
[BlackFideId "24129178"]
[WhiteElo "2241"]
[BlackElo "2336"]
[Result "0-1"]
[Round "03"]
[TimeControl "180+2"]
[Date "2022.12.27"]
[WhiteClock "0:00:06"]
[BlackClock "0:00:06"]

1. d4 {[%clk 0:02:51]}  d5 {[%clk 0:02:57]} 2. Nf3 {[%clk 0:02:50]}  Nf6 {[%clk 0:02:56]} 3. c4 {[%clk 0:02:50]}  c6 {[%clk 0:02:55]} 4. Nc3 {[%clk 0:02:48]}  dxc4 {[%clk 0:02:55]} 5. e4 {[%clk 0:02:45]}  b5 {[%clk 0:02:54]} 6. e5 {[%clk 0:02:43]}  Nd5 {[%clk 0:02:54]} 7. Be2 {[%clk 0:02:42]}  e6 {[%clk 0:02:54]} 8. O-O {[%clk 0:02:40]}  Bb7 {[%clk 0:02:53]} 9. a4 {[%clk 0:02:40]}  Nd7 {[%clk 0:02:49]} 10. Ne4 {[%clk 0:02:33]}  h6 {[%clk 0:02:42]} 11. b3 {[%clk 0:02:26]}  cxb3 {[%clk 0:02:37]} 12. Qxb3 {[%clk 0:02:27]}  a6 {[%clk 0:02:27]} 13. Ba3 {[%clk 0:02:24]}  b4 {[%clk 0:02:26]} 14. Bb2 {[%clk 0:02:14]}  c5 {[%clk 0:02:16]} 15. Rac1 {[%clk 0:02:10]}  Rc8 {[%clk 0:02:15]} 16. Nfd2 {[%clk 0:02:04]}  Nf4 {[%clk 0:01:51]} 17. Bf3 {[%clk 0:01:50]}  Bd5 {[%clk 0:01:48]} 18. Qe3 {[%clk 0:01:48]}  g5 {[%clk 0:01:46]} 19. dxc5 {[%clk 0:01:38]}  Be7 {[%clk 0:01:35]} 20. Nd6+ {[%clk 0:01:27]}  Bxd6 {[%clk 0:01:34]} 21. exd6 {[%clk 0:01:27]}  Rg8 {[%clk 0:01:33]} 22. Ne4 {[%clk 0:01:20]}  g4 {[%clk 0:01:18]} 23. Qxf4 {[%clk 0:01:17]}  gxf3 {[%clk 0:01:17]} 24. g3 {[%clk 0:01:12]}  f5 {[%clk 0:01:02]} 25. Nd2 {[%clk 0:00:54]}  Qg5 {[%clk 0:01:00]} 26. Qxg5 {[%clk 0:00:46]}  hxg5 {[%clk 0:00:59]} 27. Bd4 {[%clk 0:00:40]}  Kf7 {[%clk 0:00:59]} 28. Rfe1 {[%clk 0:00:40]}  Rge8 {[%clk 0:00:58]} 29. Nc4 {[%clk 0:00:38]}  Bxc4 {[%clk 0:00:40]} 30. Rxc4 {[%clk 0:00:37]}  e5 {[%clk 0:00:41]} 31. Be3 {[%clk 0:00:31]}  Rc6 {[%clk 0:00:35]} 32. Bxg5 {[%clk 0:00:27]}  Rxc5 {[%clk 0:00:35]} 33. Rxb4 {[%clk 0:00:26]}  Rec8 {[%clk 0:00:32]} 34. h4 {[%clk 0:00:24]}  Ke6 {[%clk 0:00:32]} 35. h5 {[%clk 0:00:19]}  Rc4 {[%clk 0:00:17]} 36. Rxc4 {[%clk 0:00:18]}  Rxc4 {[%clk 0:00:18]} 37. h6 {[%clk 0:00:17]}  Nf8 {[%clk 0:00:17]} 38. Bf4 {[%clk 0:00:15]}  Rc5 {[%clk 0:00:12]} 39. Bxe5 {[%clk 0:00:08]}  Kf7 {[%clk 0:00:06]} 40. Bf4 {[%clk 0:00:08]}  Rd5 {[%clk 0:00:07]} 41. Re7+ {[%clk 0:00:08]}  Kf6 {[%clk 0:00:07]} 42. Re8 {[%clk 0:00:07]}  Nh7 {[%clk 0:00:05]} 43. Rh8 {[%clk 0:00:07]}  Kg6 {[%clk 0:00:06]} 44. Rg8+ {[%clk 0:00:07]}  Kf6 {[%clk 0:00:05]} 45. Rg7 {[%clk 0:00:08]}  Nf8 {[%clk 0:00:05]} 46. Ra7 {[%clk 0:00:08]}  Kg6 {[%clk 0:00:05]} 47. Rxa6 {[%clk 0:00:07]}  Nh7 {[%clk 0:00:05]} 48. d7+ {[%clk 0:00:07]}  Nf6 {[%clk 0:00:05]} 49. Ra7 {[%clk 0:00:08]}  Rd1+ {[%clk 0:00:04]} 50. Kh2 {[%clk 0:00:08]}  Ng4+ {[%clk 0:00:05]} 51. Kh3 {[%clk 0:00:06]}  Rh1# {[%clk 0:00:06]} 0-1


[Site "https://www.chess.com"]

[Event "Titled Tuesday Blitz December 27 Early 2022"]
[White "Zaichenko, Daria"]
[Black "White, John S."]
[WhiteFideId "4197453"]
[BlackFideId "2502348"]
[WhiteElo "2104"]
[BlackElo "2235"]
[Result "1-0"]
[Round "03"]
[TimeControl "180+2"]
[Date "2022.12.27"]
[WhiteClock "0:00:19"]
[BlackClock "0:00:05"]

1. e4 {[%clk 0:03:00]}  c5 {[%clk 0:02:57]} 2. Nf3 {[%clk 0:03:00]}  e6 {[%clk 0:02:54]} 3. d4 {[%clk 0:03:00]}  cxd4 {[%clk 0:02:53]} 4. Nxd4 {[%clk 0:03:00]}  Nc6 {[%clk 0:02:51]} 5. Nc3 {[%clk 0:02:54]}  d6 {[%clk 0:02:51]} 6. Be3 {[%clk 0:02:48]}  Nf6 {[%clk 0:02:48]} 7. Nb3 {[%clk 0:02:39]}  Be7 {[%clk 0:02:43]} 8. Bd3 {[%clk 0:02:36]}  O-O {[%clk 0:02:41]} 9. O-O {[%clk 0:02:36]}  Bd7 {[%clk 0:02:40]} 10. f4 {[%clk 0:02:35]}  Qc7 {[%clk 0:02:38]} 11. a4 {[%clk 0:02:31]}  b6 {[%clk 0:02:23]} 12. Qf3 {[%clk 0:02:16]}  Rac8 {[%clk 0:02:20]} 13. Nb5 {[%clk 0:02:07]}  Qb8 {[%clk 0:02:18]} 14. c3 {[%clk 0:01:46]}  e5 {[%clk 0:02:00]} 15. f5 {[%clk 0:01:40]}  Rfd8 {[%clk 0:01:54]} 16. g4 {[%clk 0:01:36]}  Be8 {[%clk 0:01:47]} 17. g5 {[%clk 0:01:34]}  Nd7 {[%clk 0:01:44]} 18. Bc4 {[%clk 0:01:30]}  Kh8 {[%clk 0:01:27]} 19. Qh3 {[%clk 0:01:19]}  a6 {[%clk 0:01:20]} 20. Na3 {[%clk 0:01:06]}  Nc5 {[%clk 0:01:14]} 21. Nxc5 {[%clk 0:01:02]}  bxc5 {[%clk 0:01:10]} 22. Rf2 {[%clk 0:00:56]}  Qb7 {[%clk 0:00:56]} 23. Raf1 {[%clk 0:00:51]}  Na5 {[%clk 0:00:51]} 24. g6 {[%clk 0:00:48]}  fxg6 {[%clk 0:00:17]} 25. fxg6 {[%clk 0:00:47]}  Bxg6 {[%clk 0:00:15]} 26. Bd5 {[%clk 0:00:43]}  Qc7 {[%clk 0:00:11]} 27. Rg2 {[%clk 0:00:38]}  Be8 {[%clk 0:00:05]} 28. Qe6 {[%clk 0:00:19]} 1-0


[Site "https://www.chess.com"]